fUSD/lending_fUSD_20250514
["ID","MTS","AMOUNT","RATE_DAILY","PERIOD"]
[361014266,1747205448240,-845.86,0.00010958,2]
[361014267,1747205448249,-400.0,0.00010958,2]
[361014268,1747205448259,-400.0,0.00010958,2]
[361014269,1747205448268,-400.0,0.00010958,2]
[361014270,1747205448278,-1705.34,0.00010958,2]
[361014271,1747205448287,-451.99,0.00010958,2]
[361014272,1747205448296,-400.0,0.00010958,2]
[361014273,1747205448305,-400.0,0.00010958,2]
[361014274,1747205448314,-400.0,0.00010958,2]
[361014275,1747205448324,-400.0,0.00010958,2]
[361014276,1747205448334,-8531.47,0.00010958,2]
[361014277,1747205448343,-520.09,0.00010958,2]
[361014278,1747205448353,-742.18,0.00010958,2]
[361014279,1747205448363,-403.14309487,0.00010958,2]
[361014280,1747205448372,-400.0,0.00010958,2]
[361014281,1747205448382,-854.75,0.00010958,2]
[361014282,1747205448391,-400.0,0.00010958,2]
[361014283,1747205448401,-400.0,0.00010958,2]
[361014284,1747205448410,-400.0,0.00010958,2]
[361014285,1747205448420,-400.0,0.00010958,2]
[361014286,1747205448429,-10907.61,0.00010958,2]
[361014287,1747205448439,-1275.87,0.00010958,2]
[361014288,1747205448448,-486.89,0.00010958,2]
[361014289,1747205448457,-400.0,0.00010958,2]
[361014290,1747205448467,-452.42,0.00010958,2]
[361014291,1747205448476,-522.27,0.00010958,2]
[361014292,1747205448486,-400.0,0.00010958,2]
[361014293,1747205448495,-400.0,0.00010958,2]
[361014294,1747205448505,-400.0,0.00010958,2]
[361014295,1747205448514,-400.0,0.00010958,2]
[361014296,1747205448524,-511.16,0.00010958,2]
[361014297,1747205448533,-246.84639082,0.00010958,2]
[361014298,1747205448544,-1608.48,0.00010958,2]
[361014299,1747205448553,-400.0,0.00010958,2]
[361014300,1747205448563,-400.0,0.00010958,2]
[361014301,1747205448574,-400.0,0.00010958,2]
[361014302,1747205448584,-400.0,0.00010958,2]
[361014303,1747205448593,-400.0,0.00010958,2]
[361014304,1747205448602,-682.94,0.00010958,2]
[361014305,1747205448612,-249.45731632,0.00010958,2]
[361014306,1747205448622,-1227.03,0.00010958,2]
[361014307,1747205448632,-400.0,0.00010958,2]
[361014308,1747205448642,-400.0,0.00010958,2]
[361014309,1747205448652,-400.0,0.00010958,2]
[361014310,1747205448662,-177.16475998,0.00010958,2]
[361014311,1747205448672,-777.59,0.00010958,2]
[361014312,1747205448682,-400.0,0.00010958,2]
[361014313,1747205448692,-400.0,0.00010958,2]
[361014314,1747205448702,-1257.77,0.00010958,2]
[361014315,1747205448712,-400.0,0.00010958,2]
[361014316,1747205448721,-486.14,0.00010958,2]
[361014317,1747205448731,-400.0,0.00010958,2]
[361014318,1747205448741,-400.0,0.00010958,2]
[361014319,1747205448751,-614.45,0.00010958,2]
[361014320,1747205448760,-400.0,0.00010958,2]
[361014321,1747205448770,-458.42,0.00010958,2]
[361014322,1747205448780,-500.0,0.00010958,2]
[361014323,1747205448790,-400.23792135,0.00010958,2]
[361014324,1747205448799,-400.0,0.00010958,2]
[361014325,1747205448809,-400.0,0.00010958,2]
[361014326,1747205448819,-400.0,0.00010958,2]
[361014327,1747205448828,-1894.52,0.00010958,2]
[361014328,1747205448837,-1676.61,0.00010958,2]
[361014329,1747205448847,-400.0,0.00010958,2]
[361014330,1747205448857,-400.0,0.00010958,2]
[361014331,1747205448867,-694.87,0.00010958,2]
[361014332,1747205448876,-402.5998706,0.00010958,2]
[361014333,1747205448886,-472.70033244,0.00010958,2]
[361014334,1747205448896,-401.0390719,0.00010958,2]
[361014335,1747205448908,-540.68,0.00010958,2]
[361014336,1747205448918,-400.0,0.00010958,2]
[361014337,1747205448928,-1468.86,0.00010958,2]
[361014338,1747205448938,-10180.55,0.00010958,2]
[361014339,1747205448948,-400.0,0.00010958,2]
[361014340,1747205448959,-400.0,0.00010958,2]
[361014341,1747205448968,-416.48374059,0.00010958,2]
[361014342,1747205448978,-400.0,0.00010958,2]
[361014343,1747205448987,-780.04,0.00010958,2]
[361014344,1747205448998,-400.0,0.00010958,2]
[361014345,1747205449007,-400.0,0.00010958,2]
[361014346,1747205449016,-402.16339372,0.00010958,2]
[361014347,1747205449026,-444.63,0.00010958,2]
[361014348,1747205449035,-400.0,0.00010958,2]
[361014349,1747205449045,-735.37,0.00010958,2]
[361014350,1747205449055,-643.27,0.00010958,2]
[361014351,1747205449064,-5099.24,0.00010958,2]
[361014352,1747205449074,-400.0,0.00010958,2]
[361014353,1747205449083,-400.0,0.00010958,2]
[361014354,1747205449093,-400.0,0.00010958,2]
[361014355,1747205449105,-400.0,0.00010958,2]
[361014356,1747205449114,-400.0,0.00010958,2]
[361014357,1747205449124,-400.0,0.00010958,2]
[361014358,1747205449133,-555.02,0.00010958,2]
[361014359,1747205449143,-400.0,0.00010958,2]
[361014360,1747205449152,-400.0,0.00010958,2]
[361014361,1747205449162,-1078.84,0.00010958,2]
[361014362,1747205449171,-400.0,0.00010958,2]
[361014363,1747205449181,-806.76,0.00010958,2]
[361014364,1747205449190,-400.0,0.00010958,2]
[361014365,1747205449200,-404.72053079,0.00010958,2]
[361014366,1747205449209,-400.0,0.00010958,2]
[361014367,1747205449219,-400.0,0.00010958,2]
[361014368,1747205449228,-969.91,0.00010958,2]
[361014369,1747205449238,-344.3542314,0.00010958,2]
[361014370,1747205449248,-400.0,0.00010958,2]
[361014371,1747205449257,-2300.36,0.00010958,2]
[361014372,1747205449267,-400.0,0.00010958,2]
[361014373,1747205449277,-400.0,0.00010958,2]
[361014374,1747205449286,-309.93469126,0.00010958,2]
[361014375,1747205449295,-400.0,0.00010958,2]
[361014376,1747205449304,-9898.98,0.00010958,2]
[361014377,1747205449314,-1692.66,0.00010958,2]
[361014378,1747205449324,-400.0,0.00010958,2]
[361014379,1747205449333,-400.0,0.00010958,2]
[361014380,1747205449342,-1470.08,0.00010958,2]
[361014381,1747205449353,-1847.47,0.00010958,2]
[361014382,1747205449362,-400.0,0.00010958,2]
[361014383,1747205449372,-400.0,0.00010958,2]
[361014384,1747205449381,-968.74,0.00010958,2]
[361014385,1747205449391,-400.0,0.00010958,2]
[361014386,1747205449400,-400.0,0.00010958,2]
[361014387,1747205449410,-400.0,0.00010958,2]
[361014388,1747205449420,-400.0,0.00010958,2]
[361014389,1747205449430,-1385.54,0.00010958,2]
[361014390,1747205449439,-400.0,0.00010958,2]
[361014391,1747205449449,-4619.23,0.00010958,2]
[361014392,1747205449459,-400.0,0.00010958,2]
[361014393,1747205449469,-400.0,0.00010958,2]
[361014394,1747205449479,-400.0,0.00010958,2]
[361014395,1747205449489,-400.0,0.00010958,2]
[361014396,1747205449499,-704.41,0.00010958,2]
[361014397,1747205449509,-2101.65,0.00010958,2]
[361014398,1747205449519,-400.0,0.00010958,2]
[361014399,1747205449529,-155.4402479,0.00010958,2]
[361014400,1747205449540,-415.22461563,0.00010958,2]
[361014401,1747205449551,-595.2,0.00010958,2]
[361014402,1747205449561,-400.0,0.00010958,2]
[361014403,1747205449571,-1892.45,0.00010958,2]
[361014404,1747205449582,-400.0,0.00010958,2]
[361014405,1747205449591,-496.19400945,0.00010958,2]
[361014406,1747205449602,-1007.3,0.00010958,2]
[361014407,1747205449612,-400.0,0.00010958,2]
[361014408,1747205449622,-400.0,0.00010958,2]
[361014409,1747205449632,-1380.6,0.00010958,2]
[361014410,1747205449643,-677.67,0.00010958,2]
[361014411,1747205449653,-400.0,0.00010958,2]
[361014412,1747205449663,-924.26,0.00010958,2]
[361014413,1747205449673,-400.0,0.00010958,2]
[361014414,1747205449682,-479.03,0.00010958,2]
[361014415,1747205449692,-407.04,0.00010958,2]
[361014416,1747205449702,-460.40276636,0.00010958,2]
[361014417,1747205449713,-400.0,0.00010958,2]
[361014418,1747205449722,-400.0,0.00010958,2]
[361014419,1747205449732,-400.0,0.00010958,2]
[361014420,1747205449742,-1597.33,0.00010958,2]
[361014421,1747205449753,-400.0,0.00010958,2]
[361014422,1747205449763,-400.0,0.00010958,2]
[361014423,1747205449773,-400.0,0.00010958,2]
[361014424,1747205449783,-400.0,0.00010958,2]
[361014425,1747205449793,-400.0,0.00010958,2]
[361014426,1747205449803,-813.18,0.00010958,2]
[361014427,1747205449813,-400.0,0.00010958,2]
[361014428,1747205449823,-400.0,0.00010958,2]
[361014429,1747205449833,-711.9,0.00010958,2]
[361014430,1747205449843,-400.0,0.00010958,2]
[361014431,1747205449854,-693.39,0.00010958,2]
[361014432,1747205449864,-400.0,0.00010958,2]
[361014433,1747205449875,-400.0,0.00010958,2]
[361014434,1747205449885,-1413.33,0.00010958,2]
[361014435,1747205449895,-841.01,0.00010958,2]
[361014436,1747205449906,-1542.76,0.00010958,2]
[361014437,1747205449920,-400.0,0.00010958,2]
[361014438,1747205449929,-400.0,0.00010958,2]
[361014439,1747205449939,-400.0,0.00010958,2]
[361014440,1747205449950,-400.0,0.00010958,2]
[361014441,1747205449960,-1079.22,0.00010958,2]
[361014442,1747205449970,-657.97,0.00010958,2]
[361014443,1747205449980,-400.0,0.00010958,2]
[361014444,1747205449990,-400.0,0.00010958,2]
[361014445,1747205450000,-6255.95,0.00010958,2]
[361014446,1747205450009,-650.67,0.00010958,2]
[361014447,1747205450019,-400.0,0.00010958,2]
[361014448,1747205450029,-3504.33,0.00010958,2]
[361014449,1747205450039,-271.69494107,0.00010958,2]
[361014450,1747205450048,-538.05,0.00010958,2]
[361014451,1747205450058,-400.0,0.00010958,2]
[361014452,1747205450070,-1430.89,0.00010958,2]
[361014453,1747205450079,-400.0,0.00010958,2]
[361014454,1747205450090,-1230.37,0.00010958,2]
[361014455,1747205450100,-400.0,0.00010958,2]
[361014456,1747205450110,-165.628931,0.00010958,2]
[361014457,1747205450118,-400.0,0.00010958,2]
[361014458,1747205450128,-1237.8,0.00010958,2]
[361014459,1747205450139,-526.44,0.00010958,2]
[361014460,1747205450148,-400.0,0.00010958,2]
[361014461,1747205450158,-400.0,0.00010958,2]
[361014462,1747205450168,-400.0,0.00010958,2]
[361014463,1747205450179,-468.2,0.00010958,2]
[361014464,1747205450189,-1234.0,0.00010958,2]
[361014465,1747205450198,-1265.89,0.00010958,2]
[361014466,1747205450209,-663.28,0.00010958,2]
[361014467,1747205450219,-400.0,0.00010958,2]
[361014468,1747205450229,-400.0,0.00010958,2]
[361014469,1747205450238,-400.0,0.00010958,2]
[361014470,1747205450248,-707.64,0.00010958,2]
[361014471,1747205450258,-400.0,0.00010958,2]
[361014472,1747205450269,-400.0,0.00010958,2]
[361014473,1747205450451,-1557.69,0.00010958,2]
[361014474,1747205450461,-400.0,0.00010958,2]
[361014475,1747205450471,-542.72,0.00010958,2]
[361014476,1747205450481,-400.0,0.00010958,2]
[361014477,1747205450491,-400.0,0.00010958,2]
[361014478,1747205450501,-3034.94,0.00010958,2]
[361014479,1747205450511,-402.22508709,0.00010958,2]
[361014480,1747205450521,-400.0,0.00010958,2]
[361014481,1747205450531,-400.0,0.00010958,2]
[361014482,1747205450541,-1648.54,0.00010958,2]
[361014483,1747205450551,-1730.6,0.00010958,2]
[361014484,1747205450561,-400.0,0.00010958,2]
[361014485,1747205450571,-400.0,0.00010958,2]
[361014486,1747205450581,-240.70205449,0.00010958,2]
[361014487,1747205450591,-584.41,0.00010958,2]
[361014488,1747205450601,-5296.93,0.00010958,2]
[361014489,1747205450611,-400.0,0.00010958,2]
[361014490,1747205450620,-525.59,0.00010958,2]
[361014491,1747205450630,-422.28,0.00010958,2]
[361014492,1747205450640,-400.0,0.00010958,2]
[361014493,1747205450649,-444.35,0.00010958,2]
[361014494,1747205450659,-400.0,0.00010958,2]
[361014495,1747205450668,-1715.82,0.00010958,2]
[361014496,1747205450678,-400.0,0.00010958,2]
[361014497,1747205450687,-400.0,0.00010958,2]
[361014498,1747205450697,-400.0,0.00010958,2]
[361014499,1747205450708,-1669.55,0.00010958,2]
[361014500,1747205450719,-596.03,0.00010958,2]
[361014501,1747205450730,-400.0,0.00010958,2]
[361014502,1747205450740,-296.55509389,0.00010958,2]
[361014503,1747205450750,-400.0,0.00010958,2]
[361014504,1747205450759,-400.0,0.00010958,2]
[361014505,1747205450769,-400.0,0.00010958,2]
[361014506,1747205450778,-400.0,0.00010958,2]
[361014507,1747205450787,-512.00269118,0.00010958,2]
[361014508,1747205450796,-400.0,0.00010958,2]
[361014509,1747205450805,-400.0,0.00010958,2]
[361014510,1747205450814,-568.88,0.00010958,2]
[361014511,1747205450824,-400.0,0.00010958,2]
[361014512,1747205450833,-400.0,0.00010958,2]
[361014513,1747205450842,-400.0,0.00010958,2]
[361014514,1747205450851,-400.0,0.00010958,2]
[361014515,1747205450859,-400.0,0.00010958,2]
[361014516,1747205450868,-400.0,0.00010958,2]
[361014517,1747205450879,-445.52,0.00010958,2]
[361014518,1747205450888,-738.44,0.00010958,2]
[361014519,1747205450898,-6837.72,0.00010958,2]
[361014520,1747205450910,-400.0,0.00010958,2]
[361014521,1747205450919,-400.0,0.00010958,2]
[361014522,1747205450929,-400.0,0.00010958,2]
[361014523,1747205450938,-400.0,0.00010958,2]
[361014524,1747205450948,-400.0,0.00010958,2]
[361014525,1747205450958,-400.0,0.00010958,2]
[361014526,1747205450967,-400.0,0.00010958,2]
[361014527,1747205450977,-400.0,0.00010958,2]
[361014528,1747205450988,-400.0,0.00010958,2]
[361014529,1747205450997,-400.0,0.00010958,2]
[361014530,1747205451007,-400.0,0.00010958,2]
[361014531,1747205451016,-400.0,0.00010958,2]
[361014532,1747205451025,-506.24366494,0.00010958,2]
[361014533,1747205451035,-400.0,0.00010958,2]
[361014534,1747205451045,-400.0,0.00010958,2]
[361014535,1747205451054,-509.62278299,0.00010958,2]
[361014536,1747205451063,-400.0,0.00010958,2]
[361014537,1747205451072,-400.0,0.00010958,2]
[361014538,1747205451082,-400.0,0.00010958,2]
[361014539,1747205451092,-1433.46,0.00010958,2]
[361014540,1747205451103,-627.49,0.00010958,2]
[361014541,1747205451113,-400.0,0.00010958,2]
[361014542,1747205451122,-2352.27,0.00010958,2]
[361014543,1747205451131,-823.12,0.00010958,2]
[361014544,1747205451141,-400.0,0.00010958,2]
[361014545,1747205451150,-400.0,0.00010958,2]
[361014546,1747205451159,-5254.18,0.00010958,2]
[361014547,1747205451169,-400.0,0.00010958,2]
[361014548,1747205451178,-400.0,0.00010958,2]
[361014549,1747205451188,-400.0,0.00010958,2]
[361014550,1747205451197,-420.22,0.00010958,2]
[361014551,1747205451207,-400.0,0.00010958,2]
[361014552,1747205451216,-400.0,0.00010958,2]
[361014553,1747205451226,-400.0,0.00010958,2]
[361014554,1747205451235,-400.0,0.00010958,2]
[361014555,1747205451245,-400.0,0.00010958,2]
[361014556,1747205451254,-400.0,0.00010958,2]
[361014557,1747205451264,-401.23252577,0.00010958,2]
[361014558,1747205451274,-431.61,0.00010958,2]
[361014559,1747205451283,-400.0,0.00010958,2]
[361014560,1747205451293,-400.0,0.00010958,2]
[361014561,1747205451302,-400.0,0.00010958,2]
[361014562,1747205451311,-730.93,0.00010958,2]
[361014563,1747205451321,-400.0,0.00010958,2]
[361014564,1747205451330,-400.0,0.00010958,2]
[361014565,1747205451339,-400.0,0.00010958,2]
[361014566,1747205451348,-529.96,0.00010958,2]
[361014567,1747205451359,-1137.46,0.00010958,2]
[361014568,1747205451368,-570.91,0.00010958,2]
[361014569,1747205451378,-439.4,0.00010958,2]
[361014570,1747205451386,-400.0,0.00010958,2]
[361014571,1747205451396,-157.75561009,0.00010958,2]
[361014572,1747205451405,-400.0,0.00010958,2]
[361014573,1747205451414,-400.0,0.00010958,2]
[361014574,1747205451424,-400.0,0.00010958,2]
[361014575,1747205451433,-1585.92,0.00010958,2]
[361014576,1747205451442,-446.71,0.00010958,2]
[361014577,1747205451451,-400.0,0.00010958,2]
[361014578,1747205451460,-400.0,0.00010958,2]
[361014579,1747205451469,-1683.88,0.00010958,2]
[361014580,1747205451478,-778.99,0.00010958,2]
[361014581,1747205451488,-250.64306722,0.00010958,2]
[361014582,1747205451498,-1982.6,0.00010958,2]
[361014583,1747205451508,-500.0,0.00010958,2]
[361014584,1747205451518,-459.7,0.00010958,2]
[361014585,1747205451528,-400.0,0.00010958,2]
[361014586,1747205451537,-1084.97,0.00010958,2]
[361014587,1747205451548,-400.0,0.00010958,2]
[361014588,1747205451557,-400.0,0.00010958,2]
[361014589,1747205451566,-400.0,0.00010958,2]
[361014590,1747205451576,-400.0,0.00010958,2]
[361014591,1747205451585,-476.12320011,0.00010958,2]
[361014592,1747205451595,-636.2,0.00010958,2]
[361014593,1747205451604,-400.0,0.00010958,2]
[361014594,1747205451614,-400.0,0.00010958,2]
[361014595,1747205451624,-400.0,0.00010958,2]
[361014596,1747205451634,-1170.03,0.00010958,2]
[361014597,1747205451643,-400.0,0.00010958,2]
[361014598,1747205451653,-429.95,0.00010958,2]
[361014599,1747205451663,-765.85,0.00010958,2]
[361014600,1747205451672,-400.0,0.00010958,2]
[361014601,1747205451682,-606.91,0.00010958,2]
[361014602,1747205451692,-400.0,0.00010958,2]
[361014603,1747205451702,-400.0,0.00010958,2]
[361014604,1747205451711,-1157.96,0.00010958,2]
[361014605,1747205451720,-400.0,0.00010958,2]
[361014606,1747205451729,-400.0,0.00010958,2]
[361014607,1747205451738,-531.19079781,0.00010958,2]
[361014608,1747205451747,-820.66,0.00010958,2]
[361014609,1747205451757,-400.0,0.00010958,2]
[361014610,1747205451767,-961.85,0.00010958,2]
[361014611,1747205451776,-400.0,0.00010958,2]
[361014612,1747205451785,-400.0,0.00010958,2]
[361014613,1747205451794,-494.88,0.00010958,2]
[361014614,1747205451804,-820.65,0.00010958,2]
[361014615,1747205451813,-400.0,0.00010958,2]
[361014616,1747205451822,-615.26,0.00010958,2]
[361014617,1747205451831,-791.71,0.00010958,2]
[361014618,1747205451840,-2641.72,0.00010958,2]
[361014619,1747205451849,-400.0,0.00010958,2]
[361014620,1747205451858,-2350.96,0.00010958,2]
[361014621,1747205451867,-222.72272542,0.00010958,2]
[361014622,1747205451876,-400.0,0.00010958,2]
[361014623,1747205451885,-500.0,0.00010958,2]
[361014624,1747205451895,-500.0,0.00010958,2]
[361014625,1747205451904,-400.0,0.00010958,2]
[361014626,1747205451917,-634.85,0.00010958,2]
[361014627,1747205451926,-472.22,0.00010958,2]
[361014628,1747205451936,-400.0,0.00010958,2]
[361014629,1747205451945,-400.0,0.00010958,2]
[361014630,1747205451954,-1337.88,0.00010958,2]
[361014631,1747205451963,-400.0,0.00010958,2]
[361014632,1747205451973,-400.0,0.00010958,2]
[361014633,1747205451982,-4419.09,0.00010958,2]
[361014634,1747205451992,-818.6,0.00010958,2]
[361014635,1747205452002,-685.86,0.00010958,2]
[361014636,1747205452012,-468.2,0.00010958,2]
[361014637,1747205452021,-400.0,0.00010958,2]
[361014638,1747205452031,-400.0,0.00010958,2]
[361014639,1747205452040,-2437.17,0.00010958,2]
[361014640,1747205452049,-416.29,0.00010958,2]
[361014641,1747205452059,-413.01668516,0.00010958,2]
[361014642,1747205452068,-1261.09,0.00010958,2]
[361014643,1747205452077,-400.0,0.00010958,2]
[361014644,1747205452086,-500.0,0.00010959,2]
[361014645,1747205452095,-500.0,0.00010959,2]
[361014646,1747205452104,-200.0,0.00010959,2]
[361014647,1747205452113,-150.0,0.00010959,2]
[361014648,1747205452122,-500.0,0.00010959,2]
[361014649,1747205452132,-500.0,0.00010959,2]
[361014650,1747205452141,-500.0,0.00010959,2]
[361014651,1747205452149,-500.0,0.00010959,2]
[361014652,1747205452158,-500.0,0.00010959,2]
[361014653,1747205452167,-500.0,0.00010959,2]
[361014654,1747205452175,-500.0,0.00010959,2]
[361014655,1747205452184,-500.0,0.00010959,2]
[361014656,1747205452192,-500.0,0.00010959,2]
[361014657,1747205452201,-388.62335232,0.00010959,2]
[361014658,1747205452210,-500.0,0.00010959,2]
[361014659,1747205452220,-2761.589,0.00010972,2]
[361014660,1747205452229,-173.268,0.00010972,2]
[361014661,1747205452238,-500.0,0.00010973,2]
[361014662,1747205452246,-500.0,0.00010973,2]
[361014663,1747205452255,-500.0,0.00010973,2]
[361014664,1747205452264,-500.0,0.00010973,2]
[361014665,1747205452273,-340.16328176,0.00010973,2]
[361014666,1747205452282,-160.39713971,0.00010973,2]
[361014667,1747205452291,-186.30908686,0.00010973,2]
[361014668,1747205452304,-182.65252927,0.00010973,2]
[361014669,1747205452311,-500.0,0.00010973,2]
[361014670,1747205452317,-502.56730322,0.00010973,2]
[361014671,1747205452325,-501.00387771,0.00010973,2]
[361014672,1747205452332,-303.58326956,0.00010973,2]
[361014673,1747205452342,-500.0,0.00010973,2]
[361014674,1747205452352,-161.83154468,0.00010973,2]
[361014675,1747205452361,-500.0,0.00010973,2]
[361014676,1747205452371,-392.32042572,0.0001099,2]
[361014677,1747205452381,-392.32042572,0.0001099,2]
[361014678,1747205452390,-511.89568756,0.00010992,2]
[361014679,1747205452399,-1304.0,0.00010993,2]
[361014680,1747205452409,-931.0,0.00010993,2]
[361014681,1747205452419,-798.0,0.00010993,2]
[361014682,1747205452428,-4029.0,0.00010993,2]
[361014683,1747205452437,-6821.0,0.00010993,2]
[361014684,1747205452447,-161.302,0.00010993,2]
[361014685,1747205452456,-65714.59147039,0.00010994,2]
[361014686,1747205452466,-500.0,0.00010996,2]
[361014687,1747205452475,-500.0,0.00010997,2]
[361014688,1747205452484,-5571.7556363,0.00010998,2]
[361014689,1747205452494,-1591.1428992,0.00010998,2]
[361014690,1747205452503,-3856.4824809,0.00010998,2]
[361014691,1747205452512,-5513.3581989,0.00010998,2]
[361014692,1747205452521,-201695.2216417,0.00010998,2]
[361014693,1747205452531,-1000.0,0.00010999,2]
[361014694,1747205452541,-1000.0,0.00010999,2]
[361014695,1747205452551,-567.07,0.00010999,2]
[361014696,1747205452560,-500.0,0.00010999,2]
[361014697,1747205452569,-500.0,0.00010999,2]
[361014698,1747205452579,-500.0,0.00010999,2]
[361014699,1747205452588,-500.0,0.00010999,2]
[361014700,1747205452598,-500.0,0.00010999,2]
[361014701,1747205452609,-500.0,0.00010999,2]
[361014702,1747205452618,-500.0,0.00010999,2]
[361014703,1747205452628,-500.0,0.00010999,2]
[361014704,1747205452637,-500.0,0.00010999,2]
[361014705,1747205452647,-647.18698478,0.00010999,2]
[361014706,1747205452656,-300.0,0.00010999,2]
[361014707,1747205452665,-300.0,0.00010999,2]
[361014708,1747205452675,-300.0,0.00010999,2]
[361014709,1747205452685,-781.0,0.00011,2]
[361014710,1747205452695,-3073978.96501602,0.00011,2]
[361014711,1747205452705,-545.49567284,0.00011,2]
[361014712,1747205452715,-10492.70688055,0.00011,2]
[361014713,1747205452725,-150.0,0.00011,2]
[361014714,1747205452734,-569.94228127,0.00011,2]
[361014715,1747205452744,-710.77247366,0.00011006,2]
[361014716,1747205452754,-710.7724734,0.00011006,2]
[361014717,1747205452764,-800.73469814,0.00011021,2]
[361014718,1747205452773,-250.0,0.00011045,2]
[361014719,1747205452783,-250.0,0.00011047,2]
[361014720,1747205452793,-500.0,0.00011073,2]
[361014721,1747205452802,-300.0,0.00011098,2]
[361014722,1747205452812,-408.57229255,0.00011098,2]
[361014723,1747205452822,-112053.48707316,0.00011099,2]
[361014724,1747205453647,-596.76669111,0.00011099,2]
[361014725,1747205453659,-1633.00973577,0.00011099,2]
[361014726,1747205454734,-6416.28126161,0.00011099,2]
[361014727,1747205454748,-67098.64310217,0.00011099,2]
[361014728,1747205455626,-400.0,0.00010958,2]
[361014729,1747205455636,-400.0,0.00010958,2]
[361014730,1747205455646,-12624.94848612,0.00011099,2]
[361014731,1747205455663,-484599.99999979,0.00011099,2]
[361014732,1747205455675,-658.37860201,0.00011099,2]
[361014733,1747205455694,-317295.5467121,0.00011099,2]
[361014734,1747205455725,-218663.58310293,0.00011099,2]
[361014735,1747205455736,-34100.22817859,0.00011099,2]
[361014736,1747205455746,-34100.2281785,0.00011099,2]
[361014737,1747205455755,-34100.2281785,0.00011099,2]
[361014738,1747205455765,-34100.2281785,0.00011099,2]
[361014739,1747205455775,-34100.2281785,0.00011099,2]
[361014740,1747205455785,-10534.31204184,0.00011099,2]
[361014741,1747205455797,-23565.91613666,0.00011099,2]
[361014742,1747205455807,-34100.2281785,0.00011099,2]
[361014743,1747205455817,-27980.31641899,0.00011099,2]
[361014744,1747205455828,-2042.03949287,0.00011099,2]
[361014745,1747205455840,-4077.87226664,0.00011099,2]
[361014746,1747205455850,-3722.12773336,0.00011099,2]
[361014747,1747205455875,-269.78448013,0.00011099,2]
[361014748,1747205455887,-985.84483007,0.00011099,2]
[361014749,1747205456263,-341.77000004,0.00010958,2]
[361014750,1747205456309,-58.22999996,0.00010958,2]
[361014751,1747205456318,-536.94023274,0.00010958,2]
[361014752,1747205456328,-517.77,0.00010958,2]
[361014753,1747205456337,-400.0,0.00010958,2]
[361014754,1747205456346,-500.0,0.00010958,2]
[361014755,1747205456356,-400.0,0.00010958,2]
[361014756,1747205456365,-150.0,0.00010993,2]
[361014757,1747205456375,-24083.0411728,0.00011099,2]
[361014758,1747205456403,-5039.42996214,0.00011099,2]
[361014759,1747205456412,-2310.45314855,0.00011099,2]
[361014760,1747205456496,-91383.96457755,0.00011099,2]
[361014761,1747205456506,-93694.41772603,0.00011099,2]
[361014762,1747205456515,-93694.41772603,0.00011099,2]
[361014763,1747205456525,-93694.41772603,0.00011099,2]
[361014764,1747205456535,-93694.41772603,0.00011099,2]
[361014765,1747205456544,-93694.41772603,0.00011099,2]